bitfinex-derivatives/quotes_BNBF0:USTF0_20250617
["timestamp","ask_amount","ask_price","bid_price","bid_amount"]
[1750126564779,1.0139142,654.49,654.22,1.15]
[1750126565079,0.99184503,654.62,654.22,1.15]
[1750126565080,1.0139142,654.48,654.22,1.15]
[1750126565280,1.0139142,654.47,654.22,1.15]
[1750126565583,1.0139142,654.46,654.22,1.15]
[1750126565782,1.0139142,654.45,654.22,1.15]
[1750126565976,1.0139142,654.44,654.22,1.15]
[1750126566179,1.0139142,654.43,654.22,1.15]
[1750126566381,0.99163216,654.64,654.22,1.15]
[1750126566579,1.01376564,654.63,654.22,1.15]
[1750126566781,1.01376564,654.62,654.22,1.15]
[1750126566980,1.01376564,654.61,654.22,1.15]
[1750126567184,1.01376564,654.6,654.22,1.15]
[1750126567484,1.01376564,654.59,654.22,1.15]
[1750126567780,1.01376564,654.58,654.22,1.15]
[1750126567983,1.01376564,654.57,654.22,1.15]
[1750126568188,1.01376564,654.56,654.22,1.15]
[1750126568388,1.01376564,654.55,654.22,1.15]
[1750126568588,1.01376564,654.54,654.22,1.15]
[1750126568786,1.01376564,654.53,654.22,1.15]
[1750126568991,1.01376564,654.52,654.22,1.15]
[1750126569190,1.01376564,654.51,654.22,1.15]
[1750126569392,1.01376564,654.5,654.22,1.15]
[1750126569586,1.01376564,654.49,654.22,1.15]
[1750126569789,1.01376564,654.48,654.22,1.15]
[1750126569990,1.01376564,654.47,654.2,0.945]
[1750126570187,1.01376564,654.46,654.2,2.286]
[1750126570392,1.01376564,654.45,654.2,2.286]
[1750126570690,1.01376564,654.44,654.2,2.286]
[1750126570890,1.01376564,654.43,654.2,2.286]
[1750126571191,0.99149678,654.67,654.2,2.286]
[1750126571387,1.01367918,654.66,654.2,2.286]
[1750126571587,1.01367918,654.65,654.2,2.286]
[1750126571790,1.01367918,654.64,654.2,2.286]
[1750126571986,1.01367918,654.63,654.2,2.286]
[1750126572188,0.99149678,654.67,654.2,2.286]
[1750126572189,1.01367918,654.62,654.2,2.286]
[1750126572490,1.01367918,654.61,654.2,2.286]
[1750126572691,1.01367918,654.6,654.21,0.967]
[1750126572891,1.01367918,654.59,654.21,0.967]
[1750126573190,1.01367918,654.58,654.22,1.543]
[1750126573391,1.01367918,654.57,654.22,1.543]
[1750126573587,1.01367918,654.56,654.22,1.543]
[1750126573793,1.01367918,654.55,654.22,1.543]
[1750126573991,1.01367918,654.54,654.22,1.543]
[1750126574192,1.01367918,654.53,654.22,1.543]
[1750126574391,1.01367918,654.52,654.22,1.543]
[1750126574588,1.01367918,654.51,654.22,1.543]
[1750126574893,1.01367918,654.5,654.22,1.543]
[1750126575193,1.01367918,654.49,654.22,1.543]
[1750126575393,1.01367918,654.48,654.22,1.543]
[1750126575593,1.01367918,654.47,654.22,1.543]
[1750126575892,1.01367918,654.46,654.22,1.543]
[1750126576089,1.01367918,654.45,654.22,1.543]
[1750126576291,1.01367918,654.44,654.22,1.543]
[1750126576494,1.01367918,654.43,654.22,1.543]
[1750126576695,0.99146379,654.66,654.22,1.543]
[1750126576891,1.013754,654.65,654.22,1.543]
[1750126577092,1.013754,654.64,654.22,1.543]
[1750126577392,1.013754,654.63,654.22,1.543]
[1750126577597,1.013754,654.62,654.22,1.543]
[1750126577797,1.013754,654.61,654.22,1.543]
[1750126578101,1.52650042,654.8,654.22,1.543]
[1750126578297,1.14257638,654.66,654.22,1.543]
[1750126578597,1.01383834,654.65,654.22,1.543]
[1750126578800,1.01383834,654.64,654.22,1.543]
[1750126578998,1.01383834,654.63,654.22,1.543]
[1750126579195,1.01383834,654.62,654.22,1.543]
[1750126579499,1.01383834,654.61,654.22,1.543]
[1750126579700,1.01383834,654.6,654.22,1.543]
[1750126580000,1.01383834,654.59,654.22,1.543]
[1750126580195,1.14257638,654.66,654.22,1.543]
[1750126580196,1.01383834,654.58,654.22,1.543]
[1750126580402,1.01399182,654.57,654.22,1.543]
[1750126580597,1.01399182,654.56,654.22,1.543]
[1750126580802,1.01399182,654.55,654.22,1.543]
[1750126581004,1.01399182,654.54,654.22,1.543]
[1750126581204,1.01399182,654.53,654.22,1.543]
[1750126581402,1.01399182,654.52,654.22,1.543]
[1750126581603,1.01399182,654.51,654.23,1.244]
[1750126581804,1.01399182,654.5,654.23,1.244]
[1750126582099,1.01399182,654.49,654.23,1.244]
[1750126582298,1.01399182,654.48,654.23,1.244]
[1750126582501,1.01399182,654.47,654.23,1.244]
[1750126582699,1.01399182,654.46,654.23,1.244]
[1750126582901,1.01399182,654.45,654.23,1.244]
[1750126583100,1.01399182,654.44,654.23,1.244]
[1750126583302,1.01399182,654.43,654.23,1.244]
[1750126583605,1.01399182,654.42,654.23,1.244]
[1750126583802,1.01399182,654.41,654.23,1.244]
[1750126584006,1.01399182,654.4,654.23,1.244]
[1750126584207,0.99187892,654.64,654.23,1.244]
[1750126584405,1.01450576,654.63,654.23,1.244]
[1750126584706,1.01450576,654.62,654.23,1.244]
[1750126584907,1.01450576,654.61,654.23,1.244]
[1750126585108,1.01450576,654.6,654.23,1.244]
[1750126585304,1.01450576,654.59,654.23,1.244]
[1750126585504,1.01450576,654.58,654.23,1.244]
[1750126585705,1.01450576,654.57,654.23,1.244]
[1750126585909,1.01450576,654.56,654.23,1.244]
[1750126586106,1.01450576,654.55,654.23,1.244]
[1750126586310,1.01450576,654.54,654.23,1.244]
[1750126586506,1.01450576,654.53,654.23,1.244]
[1750126586712,1.01450576,654.52,654.23,1.244]
[1750126586912,1.01450576,654.51,654.23,1.244]
[1750126587217,1.01450576,654.5,654.23,1.244]
[1750126587409,1.01450576,654.49,654.23,1.244]
[1750126587613,1.01450576,654.48,654.24,1.252]
[1750126587814,1.01450576,654.47,654.24,1.252]
[1750126588013,1.01450576,654.46,654.24,1.252]
[1750126588310,1.01450576,654.45,654.24,1.252]
[1750126588514,0.99004587,654.69,654.24,1.252]
[1750126588715,1.01479091,654.68,654.24,1.252]
[1750126589011,1.01479091,654.67,654.24,1.252]
[1750126589217,1.01479091,654.66,654.24,1.252]
[1750126589416,1.01479091,654.65,654.24,1.252]
[1750126589609,1.01479091,654.64,654.24,1.252]
[1750126589811,1.01479091,654.63,654.24,1.252]
[1750126590011,1.01479091,654.62,654.24,1.252]
[1750126590213,1.01479091,654.61,654.24,1.252]
[1750126590415,1.01479091,654.6,654.24,1.252]
[1750126590612,1.01479091,654.59,654.24,1.252]
[1750126590914,1.01479091,654.58,654.24,1.252]
[1750126591115,1.01479091,654.57,654.24,1.252]
[1750126591415,1.01479091,654.56,654.24,1.252]
[1750126591610,1.01479091,654.55,654.24,1.252]
[1750126591813,1.01479091,654.54,654.24,1.252]
[1750126592013,1.01479091,654.53,654.24,1.252]
[1750126592216,1.01479091,654.52,654.24,1.252]
[1750126592417,1.01479091,654.51,654.24,1.252]
[1750126592718,1.01479091,654.5,654.24,1.252]
[1750126593017,1.01479091,654.49,654.24,1.252]
[1750126593319,1.01479091,654.48,654.24,1.252]
[1750126593618,1.01479091,654.47,654.24,1.252]
[1750126593817,1.01479091,654.46,654.24,1.252]
[1750126594017,1.01479091,654.45,654.24,1.252]
[1750126594219,0.99020869,654.65,654.24,1.252]
[1750126594418,1.01538714,654.64,654.24,1.252]
[1750126594615,1.01538714,654.63,654.24,1.252]
[1750126594815,1.01538714,654.62,654.24,1.252]
[1750126595018,1.01538714,654.61,654.24,1.252]
[1750126595218,1.01538714,654.6,654.24,1.252]
[1750126595515,1.01538714,654.59,654.24,1.252]
[1750126595716,1.01538714,654.58,654.24,1.252]
[1750126595921,1.01538714,654.57,654.24,1.252]
[1750126596115,1.01538714,654.56,654.24,1.252]
[1750126596318,1.01538714,654.55,654.24,1.252]
[1750126596515,1.01538714,654.54,654.24,1.252]
[1750126596718,1.01538714,654.53,654.25,1.102]
[1750126596920,1.01538714,654.52,654.25,1.102]
[1750126597120,1.01538714,654.51,654.25,1.102]
[1750126597319,1.01538714,654.5,654.25,1.102]
[1750126597521,1.01538714,654.49,654.25,1.102]
[1750126597719,1.01538714,654.48,654.25,1.102]
[1750126597921,1.01538714,654.47,654.25,1.102]
[1750126598118,1.01538714,654.46,654.25,1.102]
[1750126598323,1.01538714,654.45,654.25,1.102]
[1750126598523,0.99029019,654.64,654.25,1.102]
[1750126598720,1.01518618,654.63,654.25,1.102]
[1750126598925,1.01518618,654.62,654.25,1.102]
[1750126599122,1.01518618,654.61,654.25,1.102]
[1750126599325,1.01518618,654.6,654.25,1.102]
[1750126599526,1.01518618,654.59,654.25,1.102]
[1750126599725,1.01518618,654.58,654.25,1.102]
[1750126600024,1.01518618,654.57,654.25,1.102]
[1750126600222,1.01518618,654.56,654.25,1.102]
[1750126600425,1.01518618,654.55,654.25,1.102]
[1750126600622,1.01518618,654.54,654.25,1.102]
[1750126600822,1.01518618,654.53,654.25,1.102]
[1750126601023,1.01518618,654.52,654.25,1.102]
[1750126601226,1.01518618,654.51,654.25,1.102]
[1750126601426,1.01518618,654.5,654.25,1.102]
[1750126601624,1.01518618,654.49,654.25,1.102]
[1750126601827,1.01518618,654.48,654.25,1.102]
[1750126602026,0.99016134,654.67,654.25,1.102]
[1750126602027,1.01518618,654.47,654.25,1.102]
[1750126602227,1.01518618,654.46,654.25,1.102]
[1750126602425,1.01518618,654.45,654.25,1.102]
[1750126602624,0.99016134,654.67,654.25,1.102]
[1750126602931,1.01499705,654.66,654.25,1.102]
[1750126603129,1.14274938,654.68,654.25,1.102]
[1750126603130,1.01499705,654.65,654.25,1.102]
[1750126603329,1.01499705,654.64,654.25,1.102]
[1750126603530,1.01499705,654.63,654.25,1.102]
[1750126603730,1.01499705,654.62,654.25,1.102]
[1750126603930,1.01499705,654.61,654.25,1.102]
[1750126604230,1.01499705,654.6,654.25,1.102]
[1750126604432,1.01499705,654.59,654.25,1.102]
[1750126604730,1.01499705,654.58,654.25,1.102]
[1750126604926,1.01499705,654.57,654.25,1.102]
[1750126605124,1.01499705,654.56,654.25,1.102]
[1750126605331,1.01499705,654.55,654.25,1.102]
[1750126605530,1.01499705,654.54,654.25,1.102]
[1750126605731,1.01499705,654.53,654.26,1.416]
[1750126605926,1.01499705,654.52,654.26,1.416]
[1750126606127,1.01499705,654.51,654.26,1.416]
[1750126606326,1.01499705,654.5,654.26,1.416]
[1750126606530,1.01499705,654.49,654.26,1.416]
[1750126606830,1.01499705,654.48,654.26,1.416]
[1750126607029,1.01499705,654.47,654.26,1.416]
[1750126607227,1.14274938,654.68,654.26,1.416]
[1750126607428,1.0149697,654.67,654.26,1.416]
[1750126607727,1.0149697,654.66,654.26,1.416]
[1750126607931,1.0149697,654.65,654.26,1.416]
[1750126608231,1.0149697,654.64,654.26,1.416]
[1750126608532,1.0149697,654.63,654.26,1.416]
[1750126608733,1.0149697,654.62,654.26,1.416]
[1750126608933,1.0149697,654.61,654.27,1.113]
[1750126609133,1.0149697,654.6,654.27,1.113]
[1750126609334,1.0149697,654.59,654.27,1.113]
[1750126609636,1.0149697,654.58,654.27,1.113]
[1750126609835,1.0149697,654.57,654.27,1.113]
[1750126610034,1.0149697,654.56,654.27,1.113]
[1750126610333,1.0149697,654.55,654.27,1.113]
[1750126610535,1.0149697,654.54,654.27,1.113]
[1750126610734,1.0149697,654.53,654.28,1.303]
[1750126610935,1.0149697,654.52,654.28,1.303]
[1750126611135,1.0149697,654.51,654.28,1.303]
[1750126611434,1.0149697,654.5,654.28,1.303]
[1750126611634,1.0149697,654.49,654.28,1.303]
[1750126611929,0.98992441,654.73,654.28,1.303]
[1750126612135,1.01480975,654.72,654.28,1.303]
[1750126612334,0.98992441,654.75,654.28,1.303]
[1750126612335,1.01480975,654.71,654.28,1.303]
[1750126612529,1.01480975,654.7,654.28,1.303]
[1750126612730,1.01480975,654.69,654.28,1.303]
[1750126612931,1.01480975,654.68,654.28,1.303]
[1750126613129,1.01480975,654.67,654.28,1.303]
[1750126613331,1.01480975,654.66,654.28,1.303]
[1750126613531,1.01480975,654.65,654.28,1.303]
[1750126613835,1.01480975,654.64,654.28,1.303]
[1750126614031,1.01480975,654.63,654.28,1.303]
[1750126614331,1.01480975,654.62,654.28,1.303]
[1750126614531,1.01480975,654.61,654.28,1.303]
[1750126614734,1.01480975,654.6,654.28,1.303]
[1750126614935,1.01480975,654.59,654.28,1.303]
[1750126615136,1.01480975,654.58,654.28,1.303]
[1750126615331,1.012152,654.57,654.28,1.303]
[1750126615635,1.14274938,654.86,654.28,1.303]
[1750126615836,1.01198124,654.85,654.28,1.303]
[1750126616035,1.01198124,654.84,654.28,1.303]
[1750126616232,1.14274938,654.89,654.28,1.303]
[1750126616233,1.01198124,654.83,654.28,1.303]
[1750126616437,1.01198124,654.82,654.28,1.303]
[1750126616637,1.01198124,654.81,654.28,1.303]
[1750126616834,1.01198124,654.8,654.28,1.303]
[1750126617036,1.01198124,654.79,654.28,1.303]
[1750126617236,1.01198124,654.78,654.28,1.303]
[1750126617536,1.01198124,654.77,654.28,1.303]
[1750126617836,1.01198124,654.76,654.28,1.303]
[1750126618137,1.01198124,654.75,654.28,1.303]
[1750126618336,1.01198124,654.74,654.28,1.303]
[1750126618537,1.01198124,654.73,654.28,1.303]
[1750126618737,1.01198124,654.72,654.28,1.303]
[1750126618938,1.01198124,654.71,654.28,1.303]
[1750126619133,1.01198124,654.7,654.28,1.303]
[1750126619436,1.01198124,654.69,654.28,1.303]
[1750126619642,1.14274938,654.9,654.28,1.303]
[1750126619643,1.01198124,654.68,654.28,1.303]
[1750126619934,1.01198124,654.67,654.28,1.303]
[1750126620134,1.01198124,654.66,654.28,1.303]
[1750126620335,1.01198124,654.65,654.28,1.303]
[1750126620534,1.01198124,654.64,654.28,1.303]
[1750126620838,1.01198124,654.63,654.28,1.303]
[1750126621034,0.98972289,654.89,654.28,1.303]
[1750126621035,0.98972289,654.88,654.28,1.303]
[1750126621234,1.01119624,654.87,654.28,1.303]
[1750126621438,1.01119624,654.86,654.28,1.303]
[1750126621636,1.01119624,654.85,654.27,1.113]
[1750126621938,1.01119624,654.84,654.27,1.113]
[1750126622136,1.01119624,654.83,654.27,1.113]
[1750126622435,1.01119624,654.82,654.27,1.113]
[1750126622636,1.01119624,654.81,654.27,1.113]
[1750126622836,1.01119624,654.8,654.27,1.113]
[1750126623034,1.01119624,654.79,654.27,1.113]
[1750126623238,1.01119624,654.78,654.27,1.113]
[1750126623438,1.01119624,654.77,654.27,1.113]
[1750126623740,1.01119624,654.76,654.27,1.113]
[1750126624040,1.01119624,654.75,654.27,1.113]
[1750126624240,1.01119624,654.74,654.28,1.29]
[1750126624535,1.01119624,654.73,654.28,1.29]
[1750126624739,1.01119624,654.72,654.28,1.29]
[1750126625039,1.01119624,654.71,654.28,1.29]
[1750126625336,1.01119624,654.7,654.28,1.29]
[1750126625541,1.01077183,654.69,654.28,1.29]
[1750126625741,1.01077183,654.68,654.28,1.29]
[1750126625938,1.01077183,654.67,654.28,1.29]
[1750126626137,1.01077183,654.66,654.28,1.29]
[1750126626338,2.13050212,654.88,654.28,1.29]
[1750126626537,1.99980169,654.87,654.28,1.29]
[1750126626738,1.01069408,654.86,654.28,1.29]
[1750126627042,1.01069408,654.85,654.28,1.29]
[1750126627238,1.01069408,654.84,654.28,1.29]
[1750126627439,1.01069408,654.83,654.28,1.29]
[1750126627637,1.01069408,654.82,654.28,1.29]
[1750126627842,1.01069408,654.81,654.29,0.30567485]
[1750126628141,1.01069408,654.8,654.29,0.30567485]
[1750126628342,1.01069408,654.79,654.29,0.30567485]
[1750126628542,1.01069408,654.78,654.29,0.30567485]
[1750126628744,1.01069408,654.77,654.29,0.30567485]
[1750126628942,1.01069408,654.76,654.29,0.30567485]
[1750126629140,0.98848402,654.96,654.29,0.30567485]
[1750126629340,1.01015273,654.95,654.29,0.30567485]
[1750126629542,1.01015273,654.94,654.29,0.30567485]
[1750126629744,1.01015273,654.93,654.29,0.30567485]
[1750126630043,1.01015273,654.92,654.29,0.30567485]
[1750126630243,1.01015273,654.91,654.29,0.30567485]
[1750126630445,1.01015273,654.9,654.29,0.30567485]
[1750126630644,1.01015273,654.89,654.29,0.30567485]
[1750126630841,0.98848393,654.96,654.29,0.30567485]
[1750126630842,1.01015273,654.88,654.29,0.30567485]
[1750126631042,1.01015273,654.87,654.29,0.30567485]
[1750126631345,1.01015273,654.86,654.29,0.30567485]
[1750126631542,1.01015273,654.85,654.29,0.30567485]
[1750126631742,1.01015273,654.84,654.29,0.30567485]
[1750126631942,1.01015273,654.83,654.29,0.30567485]
[1750126632140,1.01015273,654.82,654.29,0.30567485]
[1750126632347,1.01015273,654.81,654.29,0.30567485]
[1750126632541,1.01015273,654.8,654.29,0.30567485]
[1750126632741,1.01015273,654.79,654.29,0.30567485]
[1750126632945,1.01015273,654.78,654.29,0.30567485]
[1750126633244,0.98810442,654.97,654.3,1.364]
[1750126633441,1.00964526,654.96,654.3,3.13067018]
[1750126633641,1.00964526,654.95,654.3,3.13067018]
[1750126633943,1.00964526,654.94,654.3,3.13067018]
[1750126634142,1.00964526,654.93,654.3,3.13067018]
[1750126634342,1.00964526,654.92,654.3,3.13067018]
[1750126634546,1.00964526,654.91,654.3,3.13067018]
[1750126634746,1.00964526,654.9,654.3,3.13067018]
[1750126634947,1.00964526,654.89,654.3,3.13067018]
[1750126635146,1.00964526,654.88,654.3,3.13067018]
[1750126635343,1.00964526,654.87,654.3,3.13067018]
[1750126635546,1.00964526,654.86,654.3,3.13067018]
[1750126635746,1.00964526,654.85,654.31,1.122]
[1750126635947,1.00964526,654.84,654.31,1.122]
[1750126636148,1.00964526,654.83,654.31,1.122]
[1750126636343,1.00964526,654.82,654.31,1.122]
[1750126636649,1.00964526,654.81,654.31,1.122]
[1750126636943,1.00964526,654.8,654.31,1.122]
[1750126637147,1.00964526,654.79,654.31,1.122]
[1750126637348,0.98764351,654.97,654.31,1.122]
[1750126637645,1.00935911,654.96,654.31,1.122]
[1750126637848,1.00935911,654.95,654.31,1.122]
[1750126638143,1.00935911,654.94,654.31,1.122]
[1750126638344,1.00935911,654.93,654.31,1.122]
[1750126638544,1.00935911,654.92,654.31,1.122]
[1750126638844,1.00935911,654.91,654.31,1.122]
[1750126639145,1.00935911,654.9,654.31,1.122]
[1750126639344,1.00935911,654.89,654.31,1.122]
[1750126639545,1.00935911,654.88,654.31,1.122]
[1750126639846,1.00935911,654.87,654.31,1.122]
[1750126640046,1.00935911,654.86,654.31,1.122]
[1750126640244,1.00935911,654.85,654.31,1.122]
[1750126640448,1.00935911,654.84,654.31,1.122]
[1750126640642,1.00935911,654.83,654.31,1.122]
[1750126640848,1.00935911,654.82,654.31,1.122]
[1750126641143,1.00935911,654.81,654.31,1.122]
[1750126641348,1.00935911,654.8,654.31,1.122]
[1750126641548,1.00935911,654.79,654.31,1.122]
[1750126641744,1.00935911,654.78,654.31,1.122]
[1750126641946,1.00935911,654.77,654.31,1.122]
[1750126642145,1.00935911,654.76,654.31,1.122]
[1750126642347,1.00935911,654.75,654.31,1.122]
[1750126642648,1.00935911,654.74,654.31,1.122]
[1750126642850,1.00935911,654.73,654.31,1.122]
[1750126643046,1.00935911,654.72,654.31,1.122]
[1750126643251,1.00935911,654.71,654.31,1.122]
[1750126643550,1.00935911,654.7,654.31,1.122]
[1750126643751,1.00935911,654.69,654.31,1.122]
[1750126644046,1.00935911,654.68,654.31,1.122]
[1750126644351,1.00935911,654.67,654.31,1.122]
[1750126644545,1.00935911,654.66,654.31,1.122]
[1750126644847,0.98807759,654.9,654.31,1.122]
[1750126645046,1.01050118,654.89,654.31,1.122]
[1750126645246,1.01050118,654.88,654.31,1.122]
[1750126645450,1.01050118,654.87,654.31,1.122]
[1750126645650,1.01050118,654.86,654.31,1.122]
[1750126645850,1.01050118,654.85,654.31,1.122]
[1750126646150,1.01050118,654.84,654.31,1.122]
[1750126646346,1.01050118,654.83,654.31,1.122]
[1750126646650,1.01050118,654.82,654.31,1.122]
[1750126646845,1.01050118,654.81,654.31,1.122]
[1750126647050,1.01050118,654.8,654.31,1.122]
[1750126647247,1.01050118,654.79,654.31,1.122]
[1750126647450,1.01050118,654.78,654.31,1.122]
[1750126647649,1.01050118,654.77,654.31,1.122]
[1750126647848,1.01050118,654.76,654.31,1.122]
[1750126648051,1.01050118,654.75,654.31,1.122]
[1750126648250,1.01050118,654.74,654.31,1.122]
[1750126648452,1.01050118,654.73,654.31,1.122]
[1750126648654,1.01050118,654.72,654.31,1.122]
[1750126648853,1.01050118,654.71,654.31,1.122]
[1750126649052,1.01050118,654.7,654.31,1.122]
[1750126649249,1.01050118,654.69,654.31,1.122]
[1750126649452,1.01050118,654.68,654.31,1.122]
[1750126649753,1.01050118,654.67,654.31,1.122]
[1750126650053,1.01050118,654.66,654.31,1.122]
[1750126650253,1.14139451,654.93,654.31,1.122]
[1750126650454,1.01087925,654.92,654.31,1.122]
[1750126650654,1.01087925,654.91,654.31,1.122]
[1750126650854,1.01087925,654.9,654.31,1.122]
[1750126651048,1.14139451,654.92,654.31,1.122]
[1750126651049,1.01087925,654.89,654.31,1.122]
[1750126651250,1.01087925,654.88,654.31,1.122]
[1750126651452,1.01087925,654.87,654.31,1.122]
[1750126651752,1.01087925,654.86,654.31,1.122]
[1750126651948,1.01087925,654.85,654.31,1.122]
[1750126652249,1.01087925,654.84,654.31,1.122]
[1750126652549,1.01087925,654.83,654.31,1.122]
[1750126652750,1.01087925,654.82,654.31,1.122]
[1750126652952,1.01087925,654.81,654.31,1.122]
[1750126653249,1.01087925,654.8,654.31,1.122]
[1750126653458,1.01087925,654.79,654.31,1.122]
[1750126653650,1.01087925,654.78,654.31,1.122]
[1750126653854,1.01087925,654.77,654.31,1.122]
[1750126654057,1.01087925,654.76,654.31,1.122]
[1750126654354,1.01087925,654.75,654.31,1.122]
[1750126654649,1.01087925,654.74,654.31,1.122]
[1750126654850,1.01087925,654.73,654.3,1.76667018]
[1750126655154,1.01087925,654.72,654.3,1.76667018]
[1750126655350,1.01087925,654.71,654.3,1.76667018]
[1750126655551,1.01087925,654.7,654.3,1.76667018]
[1750126655753,1.01087925,654.69,654.3,1.76667018]
[1750126655950,1.01087925,654.68,654.3,1.76667018]
[1750126656151,1.01087925,654.67,654.3,1.76667018]
[1750126656356,1.01087925,654.66,654.3,1.76667018]
[1750126656657,0.99045442,654.89,654.3,1.76667018]
[1750126656854,1.01125982,654.88,654.3,1.76667018]
[1750126657060,1.01125982,654.87,654.31,1.08]
[1750126657252,1.01125982,654.86,654.31,1.08]
[1750126657456,1.01125982,654.85,654.31,1.08]
[1750126657755,1.01125982,654.84,654.32,1.453]
[1750126657953,1.01125982,654.83,654.32,1.453]
[1750126658154,1.01125982,654.82,654.32,1.453]
[1750126658353,0.99047207,654.88,654.32,1.453]
[1750126658354,1.01125982,654.81,654.32,1.453]
[1750126658554,1.01125982,654.8,654.32,1.453]
[1750126658754,1.01125982,654.79,654.32,1.453]
[1750126658957,1.01125982,654.78,654.32,1.453]
[1750126659156,1.01125982,654.77,654.32,1.453]
[1750126659357,1.01125982,654.76,654.32,1.453]
[1750126659658,1.01125982,654.75,654.32,1.453]
[1750126659858,1.01125982,654.74,654.32,1.453]
[1750126660055,1.01125982,654.73,654.32,1.453]
[1750126660360,1.01125982,654.72,654.32,1.453]
[1750126660554,1.01125982,654.71,654.32,1.453]
[1750126660758,1.01125982,654.7,654.32,1.453]
[1750126660955,1.01125982,654.69,654.32,1.453]
[1750126661154,1.01125982,654.68,654.32,1.453]
[1750126661358,1.01125982,654.67,654.32,1.453]
[1750126661555,1.01125982,654.66,654.32,1.453]
[1750126661755,1.01125982,654.65,654.32,1.453]
[1750126661960,1.01125982,654.64,654.32,1.453]
[1750126662156,0.9906862,654.84,654.32,1.453]
[1750126662157,0.9906862,654.83,654.32,1.453]
[1750126662361,1.0116941,654.82,654.32,1.453]
[1750126662561,1.0116941,654.81,654.32,1.453]
[1750126662762,1.0116941,654.8,654.32,1.453]
[1750126662962,1.0116941,654.79,654.32,1.453]
[1750126663261,1.0116941,654.78,654.32,1.453]
[1750126663462,1.0116941,654.77,654.32,1.453]
[1750126663658,1.0116941,654.76,654.32,1.453]
[1750126663958,1.0116941,654.75,654.32,1.453]
[1750126664258,1.0116941,654.74,654.32,1.453]
[1750126664462,1.0116941,654.73,654.32,1.453]
[1750126664664,1.0116941,654.72,654.32,1.453]
[1750126664862,1.0116941,654.71,654.32,1.453]
[1750126665162,1.0116941,654.7,654.32,1.453]
[1750126665362,1.0116941,654.69,654.32,1.453]
[1750126665563,1.0116941,654.68,654.32,1.453]
[1750126665764,1.0116941,654.67,654.32,1.453]
[1750126666060,1.0116941,654.66,654.32,1.453]
[1750126666264,1.0116941,654.65,654.32,1.453]
[1750126666463,1.0116941,654.64,654.32,1.453]
[1750126666664,1.01226966,654.63,654.32,1.453]
[1750126666864,0.99117665,654.84,654.32,1.453]
[1750126667059,1.01226912,654.83,654.32,1.453]
[1750126667261,1.01226912,654.82,654.32,1.453]
[1750126667468,1.01226912,654.81,654.32,1.453]
[1750126667667,1.01226912,654.8,654.33,1.278]
[1750126667965,1.01226912,654.79,654.33,1.278]
[1750126668165,1.01226912,654.78,654.33,1.278]
[1750126668363,1.01226912,654.77,654.33,1.278]
[1750126668563,1.01226912,654.76,654.33,1.278]
[1750126668765,1.01226912,654.75,654.33,1.278]
[1750126668963,1.01226912,654.74,654.33,1.278]
[1750126669162,0.99155749,654.82,654.33,1.278]
[1750126669163,1.01226912,654.73,654.33,1.278]
[1750126669365,1.01226912,654.72,654.33,1.278]
[1750126669569,1.01226912,654.71,654.33,1.278]
[1750126669769,1.01226912,654.7,654.33,1.278]
[1750126670069,1.01226912,654.69,654.33,1.278]
[1750126670270,1.01226912,654.68,654.33,1.278]
[1750126670568,1.01226912,654.67,654.33,1.278]
[1750126670768,1.01226912,654.66,654.33,1.278]
[1750126670966,1.01226912,654.65,654.33,1.278]
[1750126671165,1.01226912,654.64,654.33,1.278]
[1750126671368,1.01226912,654.63,654.33,1.278]
[1750126671566,1.01226912,654.62,654.33,1.278]
[1750126671771,1.01226912,654.61,654.33,1.278]